bitfinex/quotes_BTCUSD_20250604
["timestamp","ask_amount","ask_price","bid_price","bid_amount"]
[1749004463734,0.72887634,105620.0,105610.0,0.62412]
[1749004463995,0.69473785,105620.0,105610.0,0.63912]
[1749004464227,0.69473785,105620.0,105610.0,0.7349743]
[1749004464432,0.37247522,105620.0,105610.0,0.7349743]
[1749004464634,0.35473785,105620.0,105610.0,0.7349743]
[1749004468186,0.37023785,105620.0,105610.0,0.7349743]
[1749004468633,0.37023785,105620.0,105610.0,0.7199743]
[1749004472029,0.40457535,105620.0,105610.0,0.7199743]
[1749004472320,0.38683785,105620.0,105610.0,0.7199743]
[1749004472789,0.37023785,105620.0,105610.0,0.4314143]
[1749004473007,0.74271325,105620.0,105610.0,0.62408]
[1749004473228,0.7249757,105620.0,105610.0,0.62408]
[1749004473454,0.7414757,105620.0,105610.0,0.62408]
[1749004473685,1.0814757,105620.0,105610.0,0.33556]
[1749004473945,1.09921411,105620.0,105610.0,0.24724]
[1749004474159,1.09054562,105620.0,105610.0,0.62404]
[1749004474386,1.10828454,105620.0,105610.0,0.62404]
[1749004474816,1.10828464,105620.0,105610.0,0.62404]
[1749004475034,1.09054562,105620.0,105610.0,0.62404]
[1749004475259,1.108285,105620.0,105610.0,0.62404]
[1749004475468,1.09054562,105620.0,105610.0,0.62404]
[1749004475737,1.10828506,105620.0,105610.0,0.62404]
[1749004475972,0.75354702,105620.0,105610.0,0.62404]
[1749004476208,0.73580777,105620.0,105610.0,0.62404]
[1749004476635,0.75354658,105620.0,105610.0,0.62404]
[1749004476832,0.73580777,105620.0,105610.0,0.62404]
[1749004479424,0.75354659,105620.0,105610.0,0.62404]
[1749004479635,0.73580777,105620.0,105610.0,0.62404]
[1749004480496,0.7535467,105620.0,105610.0,0.62404]
[1749004480706,0.75354667,105620.0,105610.0,0.62404]
[1749004480919,0.75354653,105620.0,105610.0,0.62404]
[1749004481134,0.73580777,105620.0,105610.0,0.62404]
[1749004481360,0.71023785,105620.0,105610.0,0.62404]
[1749004481597,0.7193097,105620.0,105610.0,0.62404]
[1749004481816,0.71930983,105620.0,105610.0,0.62404]
[1749004482273,0.71930983,105620.0,105610.0,0.64054]
[1749004482274,0.69473785,105620.0,105610.0,0.64054]
[1749004482494,0.69473785,105620.0,105610.0,0.7363943]
[1749004482723,0.37247575,105620.0,105610.0,0.7363943]
[1749004482941,0.35473785,105620.0,105610.0,0.7514943]
[1749004483366,0.35473785,105620.0,105610.0,0.7363943]
[1749004484453,0.37083785,105620.0,105610.0,0.7198943]
[1749004484880,0.71083785,105620.0,105610.0,0.7198943]
[1749004485326,0.71083785,105620.0,105610.0,0.7199343]
[1749004485751,0.72603785,105620.0,105610.0,0.7199343]
[1749004485952,0.72603785,105620.0,105610.0,0.3430943]
[1749004486202,0.71083785,105620.0,105610.0,0.7198943]
[1749004486979,0.69473785,105620.0,105610.0,0.7198943]
[1749004487227,0.69473785,105620.0,105610.0,0.7359943]
[1749004488414,0.69473785,105620.0,105610.0,0.7518943]
[1749004488642,0.69473785,105620.0,105610.0,0.3750943]
[1749004488885,0.69473785,105620.0,105610.0,0.7518943]
[1749004489125,0.35473785,105620.0,105610.0,0.7518943]
[1749004489820,0.69473785,105620.0,105610.0,0.7518943]
[1749004490316,0.01773714,105630.0,105610.0,0.7518943]
[1749004490582,0.35773714,105630.0,105620.0,0.1261543]
[1749004491493,0.01773714,105630.0,105620.0,0.1261543]
[1749004491718,1.06721284,105630.0,105620.0,0.1261543]
[1749004491949,1.06821284,105630.0,105620.0,0.1261543]
[1749004493340,0.72821284,105630.0,105620.0,0.1111543]
[1749004493575,0.72921284,105630.0,105620.0,0.1111543]
[1749004494049,1.08491284,105630.0,105620.0,0.3843743]
[1749004500534,1.08491284,105630.0,105620.0,0.3843343]
[1749004503259,1.08491284,105630.0,105620.0,0.0958543]
[1749004503502,1.08491284,105630.0,105620.0,0.4725743]
[1749004506408,1.08491284,105630.0,105620.0,0.0958543]
[1749004506632,1.08491284,105630.0,105620.0,0.4725743]
[1749004506852,1.10071284,105630.0,105620.0,0.4725743]
[1749004507083,1.10071284,105630.0,105620.0,0.0958543]
[1749004507293,1.10071284,105630.0,105620.0,0.4725743]
[1749004508188,1.10071284,105630.0,105620.0,0.1840943]
[1749004508420,1.10071284,105630.0,105620.0,0.37672]
[1749004509083,1.11844959,105630.0,105620.0,0.37672]
[1749004509330,1.10071284,105630.0,105620.0,0.37672]
[1749004509545,1.11844943,105630.0,105620.0,0.37672]
[1749004509775,1.10071284,105630.0,105620.0,0.37672]
[1749004511753,1.11844956,105630.0,105620.0,0.37672]
[1749004511968,1.10071284,105630.0,105620.0,0.37672]
[1749004512420,0.016,105620.0,105610.0,0.24524]
[1749004512631,0.38703785,105620.0,105610.0,0.7178143]
[1749004513049,0.38703785,105620.0,105610.0,0.3410943]
[1749004513275,0.38703785,105620.0,105610.0,0.7178143]
[1749004513942,0.38703785,105620.0,105610.0,0.7188143]
[1749004515069,0.38703785,105620.0,105610.0,0.7198143]
[1749004515287,0.37073785,105620.0,105610.0,0.7198143]
[1749004517002,0.35473785,105620.0,105610.0,0.7198143]
[1749004517226,0.35473785,105620.0,105610.0,0.7354143]
[1749004517450,0.37023785,105620.0,105610.0,0.7198143]
[1749004520382,0.37023785,105620.0,105610.0,0.3430943]
[1749004520601,0.37023785,105620.0,105610.0,0.7198143]
[1749004521868,0.38553785,105620.0,105610.0,0.3430943]
[1749004522095,0.38553785,105620.0,105610.0,0.7198143]
[1749004522609,0.38553785,105620.0,105610.0,0.3430943]
[1749004522830,0.38553785,105620.0,105610.0,0.7198143]
[1749004523280,0.38553785,105620.0,105610.0,0.4313343]
[1749004523507,0.38553785,105620.0,105610.0,0.7198143]
[1749004525250,0.37023785,105620.0,105610.0,0.7198143]
[1749004528513,0.35473785,105620.0,105610.0,0.7513143]
[1749004528738,0.01773714,105630.0,105620.0,0.0165]
[1749004528994,0.01773714,105630.0,105620.0,0.1123543]
[1749004528995,0.37247499,105630.0,105620.0,0.1123543]
[1749004529210,0.72721284,105630.0,105620.0,0.1123543]
[1749004530090,0.72821284,105630.0,105620.0,0.1123543]
[1749004530754,0.74531284,105630.0,105620.0,0.0958543]
[1749004530973,0.76051284,105630.0,105620.0,0.4725343]
[1749004532041,0.05103714,105630.0,105620.0,0.4725343]
[1749004532278,0.76051284,105630.0,105620.0,0.4725343]
[1749004533943,1.10051284,105630.0,105620.0,0.4725343]
[1749004534842,1.10958304,105630.0,105620.0,0.4725343]
[1749004535063,1.12731947,105630.0,105620.0,0.4725343]
[1749004535326,1.10958304,105630.0,105620.0,0.4725343]
[1749004535542,1.12731943,105630.0,105620.0,0.4725343]
[1749004535759,1.10051284,105630.0,105620.0,0.4725343]
[1749004535966,1.10958362,105630.0,105620.0,0.4725343]
[1749004536222,1.10958362,105630.0,105620.0,0.1840943]
[1749004536427,1.1273202,105630.0,105620.0,0.0958543]
[1749004536640,1.10878362,105630.0,105620.0,0.37668]
[1749004537061,0.3712,105620.0,105610.0,0.24524]
[1749004537267,0.72593785,105620.0,105610.0,0.7177743]
[1749004537476,0.71083785,105620.0,105610.0,0.7177743]
[1749004537683,0.72593785,105620.0,105610.0,0.7177743]
[1749004538299,0.72593785,105620.0,105610.0,0.7187743]
[1749004538722,0.72593785,105620.0,105610.0,0.7197743]
[1749004540437,0.74367567,105620.0,105610.0,0.7197743]
[1749004540646,0.72593785,105620.0,105610.0,0.7197743]
[1749004542334,0.3712,105620.0,105610.0,0.3430943]
[1749004542539,0.72593785,105620.0,105610.0,0.7197743]
[1749004543018,0.74367591,105620.0,105610.0,0.7197743]
[1749004543263,0.72593785,105620.0,105610.0,0.7197743]
[1749004543515,0.72593785,105620.0,105610.0,0.3430943]
[1749004543727,0.74367591,105620.0,105610.0,0.7197743]
[1749004543935,0.72593785,105620.0,105610.0,0.3430943]
[1749004544156,1.0806757,105620.0,105610.0,0.33548]
[1749004544371,1.0806757,105620.0,105610.0,0.28844]
[1749004544372,1.07384533,105620.0,105610.0,0.28844]
[1749004544582,1.11856033,105620.0,105610.0,0.28844]
[1749004545227,1.09014533,105620.0,105610.0,0.89436]
[1749004545474,0.75314715,105620.0,105610.0,0.89436]
[1749004545675,0.73540748,105620.0,105610.0,0.89436]
[1749004545896,0.73640748,105620.0,105610.0,0.89436]
[1749004546102,0.75414659,105620.0,105610.0,0.89436]
[1749004546524,0.73740748,105620.0,105610.0,0.89436]
[1749004546737,0.73740457,105620.0,105610.0,0.89436]
[1749004546943,0.74040457,105620.0,105610.0,0.89436]
[1749004547398,0.75814373,105620.0,105610.0,0.89436]
[1749004547611,0.74040457,105620.0,105610.0,0.89436]
[1749004547818,0.75814373,105620.0,105610.0,0.89436]
[1749004548088,0.74040457,105620.0,105610.0,0.89436]
[1749004549560,0.38566672,105620.0,105610.0,0.89436]
[1749004549772,0.73133785,105620.0,105610.0,0.89436]
[1749004549978,0.74040457,105620.0,105610.0,0.89436]
[1749004550627,0.74040149,105620.0,105610.0,0.89436]
[1749004551259,0.75814055,105620.0,105610.0,0.89436]
[1749004551466,0.74040149,105620.0,105610.0,0.89436]
[1749004551670,0.75814053,105620.0,105610.0,0.89436]
[1749004551894,0.74040149,105620.0,105610.0,0.89436]
[1749004552059,0.75814052,105620.0,105610.0,0.89436]
[1749004552285,0.74040149,105620.0,105610.0,0.89436]
[1749004552488,0.74040149,105620.0,105610.0,0.8944]
[1749004552713,1.09513934,105620.0,105610.0,0.8944]
[1749004554561,1.09513785,105620.0,105610.0,0.8944]
[1749004554689,0.7404,105620.0,105610.0,0.8944]
[1749004555785,1.20538812,105620.0,105600.0,0.00014416]
[1749004556019,1.20538812,105620.0,105600.0,0.01493728]
[1749004556020,1.0812757,105610.0,105600.0,0.01493728]
[1749004556449,1.09033665,105610.0,105600.0,0.39181728]
[1749004557089,1.13977582,105610.0,105600.0,0.39181728]
[1749004557306,1.13977582,105610.0,105600.0,0.37702416]
[1749004558168,1.09033665,105610.0,105600.0,0.37702416]
[1749004558388,1.0812757,105610.0,105600.0,0.37702416]
[1749004558596,1.09133336,105610.0,105600.0,0.37702416]
[1749004558821,1.09233336,105610.0,105600.0,0.37702416]
[1749004559650,1.12031535,105610.0,105600.0,0.37702416]
[1749004560301,1.12031535,105610.0,105600.0,0.08838416]
[1749004560506,1.12031535,105610.0,105600.0,0.37686416]
[1749004560937,1.1380569,105610.0,105600.0,0.37686416]
[1749004561170,0.0162,105590.0,105580.0,0.01479441]
[1749004561407,0.38613785,105590.0,105580.0,0.38481513]
[1749004561623,0.38613785,105590.0,105580.0,0.11113049]
[1749004561842,0.38613785,105590.0,105580.0,0.39973049]
[1749004562304,0.38613785,105590.0,105580.0,0.11113049]
[1749004562525,0.38613785,105590.0,105580.0,0.40369049]
[1749004563004,0.38613785,105590.0,105580.0,0.38889513]
[1749004564018,0.38613785,105590.0,105580.0,0.38885513]
[1749004564686,0.37093785,105590.0,105580.0,0.38685513]
[1749004565126,0.38061298,105590.0,105580.0,0.38685513]
[1749004565350,0.38061298,105590.0,105580.0,0.99289513]
[1749004565566,0.38061298,105590.0,105580.0,0.99089513]
[1749004566035,0.38061298,105590.0,105580.0,1.00569136]
[1749004566255,0.38061298,105590.0,105580.0,0.71717136]
[1749004566473,0.39711298,105590.0,105580.0,1.00569136]
[1749004568650,1.18436205,105590.0,105580.0,0.62131706]
[1749004568869,1.18436205,105590.0,105580.0,0.90983706]
[1749004568870,1.10959453,105590.0,105580.0,0.90983706]
[1749004569100,1.10959456,105590.0,105580.0,0.90983706]
[1749004569321,1.09185083,105590.0,105580.0,0.90983706]
[1749004570183,1.10959484,105590.0,105580.0,0.90983706]
[1749004570407,1.10959487,105590.0,105580.0,0.90983706]
[1749004570618,1.09185083,105590.0,105580.0,0.90983706]
[1749004571099,1.10959489,105590.0,105580.0,0.90983706]
[1749004571313,1.20210612,105590.0,105580.0,0.90983706]
[1749004571528,1.09185083,105590.0,105580.0,0.90983706]
[1749004571751,1.10959493,105590.0,105580.0,0.53307706]
[1749004571977,1.10959493,105590.0,105580.0,0.90983706]
[1749004572198,1.12733902,105590.0,105580.0,0.90983706]
[1749004572420,1.12733905,105590.0,105580.0,0.90983706]
[1749004572644,1.12733929,105590.0,105580.0,0.90983706]
[1749004572874,1.20210615,105590.0,105580.0,0.60652083]
[1749004573126,1.22890495,105590.0,105580.0,0.89508083]
[1749004573341,1.21116016,105590.0,105580.0,0.89508083]
[1749004573838,1.11864894,105590.0,105580.0,0.89508083]
[1749004574306,1.13639383,105590.0,105580.0,0.89508083]
[1749004574529,1.11864894,105590.0,105580.0,0.89803831]
[1749004574946,1.13639387,105590.0,105580.0,0.89508083]
[1749004575179,1.11864894,105590.0,105580.0,0.89803831]
[1749004575393,1.13639387,105590.0,105580.0,0.89508083]
[1749004575603,1.13639388,105590.0,105580.0,0.89803831]
[1749004575816,1.11864894,105590.0,105580.0,0.89803831]
[1749004576277,1.11864894,105590.0,105580.0,0.90099579]
[1749004576491,1.11864894,105590.0,105580.0,0.89803831]
[1749004576931,1.13639385,105590.0,105580.0,0.89803831]
[1749004577153,1.10214894,105590.0,105580.0,0.89803831]
[1749004577385,0.73990152,105590.0,105580.0,0.91333831]
[1749004577604,0.72215708,105590.0,105580.0,1.02499261]
[1749004578033,0.71248195,105590.0,105580.0,1.02499261]
[1749004579082,0.73022546,105590.0,105580.0,1.02499261]
[1749004579310,0.71248195,105590.0,105580.0,1.02499261]
[1749004579843,0.37248195,105590.0,105580.0,1.02499261]
[1749004582849,0.0177441,105590.0,105580.0,1.02499261]
[1749004583055,0.37248195,105590.0,105580.0,1.02499261]
[1749004583489,0.37248195,105590.0,105580.0,0.73643261]
[1749004583728,0.37248195,105590.0,105580.0,0.64819261]
[1749004583937,0.37248195,105590.0,105580.0,1.00923261]
[1749004584157,0.37248195,105590.0,105580.0,1.00931261]
[1749004584590,0.37248195,105590.0,105580.0,0.99401261]
[1749004584794,0.38778195,105590.0,105580.0,0.99401261]
[1749004586402,0.40552484,105590.0,105580.0,0.99401261]
[1749004586675,0.38778195,105590.0,105580.0,0.99401261]
[1749004586891,0.40552486,105590.0,105580.0,0.99393261]
[1749004587135,0.38778195,105590.0,105580.0,0.99393261]
[1749004588526,0.40552488,105590.0,105580.0,0.61709261]
[1749004588762,0.40318195,105590.0,105580.0,0.99405261]
[1749004588991,0.40318195,105590.0,105580.0,0.99413261]
[1749004589226,0.7579198,105590.0,105580.0,0.60947831]
[1749004589466,0.7579198,105590.0,105580.0,0.89831831]
[1749004591280,0.77566283,105590.0,105580.0,0.89831831]
[1749004591499,0.7579198,105590.0,105580.0,0.89831831]
[1749004591990,0.7579198,105590.0,105580.0,0.89851831]
[1749004592240,0.76698886,105590.0,105580.0,0.89851831]
[1749004592933,0.78473268,105590.0,105580.0,0.89851831]
[1749004593159,0.76698886,105590.0,105580.0,0.89851831]
[1749004594273,0.7579198,105590.0,105580.0,0.89851831]
[1749004594712,0.76698922,105590.0,105580.0,0.89851831]
[1749004595188,1.10698922,105590.0,105580.0,0.89847831]
[1749004595874,1.0979198,105590.0,105580.0,0.89847831]
[1749004596096,1.10698936,105590.0,105580.0,0.89847831]
[1749004596993,1.12473336,105590.0,105580.0,0.89847831]
[1749004597215,1.10698936,105590.0,105580.0,0.89847831]
[1749004597866,1.10698936,105590.0,105580.0,0.89835831]
[1749004598048,1.12473344,105590.0,105580.0,0.89835831]
[1749004598258,1.10698936,105590.0,105580.0,0.89835831]
[1749004598470,1.2172447,105590.0,105580.0,0.60967831]
[1749004598683,1.21724472,105590.0,105580.0,0.89855831]
[1749004598900,1.19950058,105590.0,105580.0,0.89855831]
[1749004599333,1.21724509,105590.0,105580.0,0.89855831]
[1749004599548,1.19950058,105590.0,105580.0,0.89855831]
[1749004599779,1.19043102,105590.0,105580.0,0.89855831]
[1749004600002,1.19950105,105590.0,105580.0,0.89855831]
[1749004600219,1.19950105,105590.0,105580.0,0.60967831]
[1749004600435,1.19950105,105590.0,105580.0,0.90159578]
[1749004600658,1.10698983,105590.0,105580.0,0.89863831]
[1749004600873,1.10698983,105590.0,105580.0,0.89867831]
[1749004601520,1.10998983,105590.0,105580.0,0.89867831]
[1749004602005,1.11866465,105590.0,105580.0,0.89867831]
[1749004602224,1.1099894,105590.0,105580.0,0.89867831]
[1749004602889,1.12973428,105590.0,105580.0,0.90163579]
[1749004603110,1.1119894,105590.0,105580.0,0.89867831]
[1749004603324,1.1119894,105590.0,105580.0,0.52419579]
[1749004603540,1.1119894,105590.0,105580.0,0.89863831]
[1749004603999,1.14246762,105590.0,105580.0,0.89863831]
[1749004604210,1.14246762,105590.0,105580.0,0.90159578]
[1749004604427,1.1119894,105590.0,105580.0,0.90159579]
[1749004604645,1.1119894,105590.0,105580.0,0.89859831]
[1749004605078,1.12973425,105590.0,105580.0,0.89859831]
[1749004605297,1.1119894,105590.0,105580.0,0.89859831]
[1749004605770,1.12973427,105590.0,105580.0,0.90155578]
[1749004606208,1.1119894,105590.0,105580.0,0.89859831]
[1749004606425,1.1119894,105590.0,105580.0,0.89855831]
[1749004606908,1.1119894,105590.0,105580.0,0.52123831]
[1749004607123,1.1119894,105590.0,105580.0,0.89851831]
[1749004607550,1.1119894,105590.0,105580.0,0.52123831]
[1749004607781,1.12973408,105590.0,105580.0,0.89847831]
[1749004607999,1.11198926,105590.0,105580.0,0.89847831]
[1749004608656,1.11198926,105590.0,105580.0,0.52419578]
[1749004608887,1.11198926,105590.0,105580.0,0.90143578]
[1749004609108,1.11198926,105590.0,105580.0,0.89847831]
[1749004609888,1.12973408,105590.0,105580.0,0.89847831]
[1749004610098,1.11198926,105590.0,105580.0,0.89847831]
[1749004610738,1.12973408,105590.0,105580.0,0.89847831]
[1749004610945,1.11198926,105590.0,105580.0,0.89847831]
[1749004611126,1.11198926,105590.0,105580.0,0.89835831]
[1749004611759,1.11198926,105590.0,105580.0,0.90131578]
[1749004611967,1.11198926,105590.0,105580.0,0.89835831]
[1749004612395,1.12973408,105590.0,105580.0,0.89835831]
[1749004612607,1.11198926,105590.0,105580.0,0.90131578]
[1749004612817,1.11198926,105590.0,105580.0,0.89835831]
[1749004613243,1.12973408,105590.0,105580.0,0.89835831]
[1749004613457,1.11198926,105590.0,105580.0,0.90123578]
[1749004613673,1.11198926,105590.0,105580.0,0.89827831]
[1749004613929,1.11198926,105590.0,105580.0,0.90123578]
[1749004613930,0.74185141,105590.0,105580.0,0.90123578]
[1749004614143,0.72655141,105590.0,105580.0,0.91387831]
[1749004614595,0.72655141,105590.0,105580.0,0.93017831]
[1749004615039,0.71748195,105590.0,105580.0,1.02603261]
[1749004615486,0.71748195,105590.0,105580.0,0.63269261]
[1749004615727,0.73288195,105590.0,105580.0,0.99461261]
[1749004616176,0.75062507,105590.0,105580.0,0.99461261]
[1749004616393,0.73288195,105590.0,105580.0,0.99461261]
[1749004616612,0.75062508,105590.0,105580.0,0.99461261]
[1749004616821,0.73288195,105590.0,105580.0,0.99461261]
[1749004617073,0.73288195,105590.0,105580.0,0.61709261]
[1749004617286,0.73288195,105590.0,105580.0,0.99461261]
[1749004617725,0.75062488,105590.0,105580.0,0.99461261]
[1749004617944,0.73288195,105590.0,105580.0,0.99461261]
[1749004618613,0.75062485,105590.0,105580.0,0.99461261]
[1749004619065,0.73288195,105590.0,105580.0,0.99461261]
[1749004619288,1.0876198,105590.0,105580.0,0.99461261]
[1749004619748,1.0876198,105590.0,105580.0,0.08844]
[1749004619969,1.0876198,105590.0,105570.0,0.0304]
[1749004620186,1.0876198,105590.0,105570.0,0.03049097]
[1749004620187,0.7094757,105580.0,105570.0,0.03049097]
[1749004621078,0.7094757,105580.0,105570.0,0.31961097]
[1749004621304,0.7104757,105580.0,105570.0,0.31961097]
[1749004622650,0.7114757,105580.0,105570.0,0.31961097]
[1749004623308,0.7114757,105580.0,105570.0,0.30451097]
[1749004624010,0.7114757,105580.0,105570.0,0.01539097]
[1749004624233,0.7114757,105580.0,105570.0,0.30435097]
[1749004624440,0.7114757,105580.0,105570.0,0.01539097]
[1749004624648,0.7114757,105580.0,105570.0,0.30431097]
[1749004625272,0.7278757,105580.0,105570.0,0.91063097]
[1749004625488,0.7278757,105580.0,105570.0,0.89533097]
[1749004625691,0.7278757,105580.0,105570.0,0.89529097]
[1749004626306,0.7278757,105580.0,105570.0,0.51797097]
[1749004626508,0.7278757,105580.0,105570.0,0.89529097]
[1749004626723,0.7278757,105580.0,105570.0,0.60641097]
[1749004627128,0.7278757,105580.0,105570.0,0.89525097]
[1749004627580,0.7278757,105580.0,105570.0,0.60641097]
[1749004627792,0.34,105570.0,105560.0,0.03109764]
[1749004627992,1.0494757,105570.0,105560.0,0.41604002]
[1749004628649,1.0494757,105570.0,105560.0,0.12700002]
[1749004629113,1.0494757,105570.0,105560.0,0.41600002]
[1749004629341,0.7094757,105570.0,105560.0,0.41600002]
[1749004629561,0.7094757,105570.0,105560.0,0.11070002]
[1749004629841,0.7259757,105570.0,105560.0,0.39966002]
[1749004630249,1.42071355,105570.0,105550.0,0.0171236]
[1749004630504,0.71123785,105570.0,105560.0,0.28892]
[1749004631214,0.72898467,105570.0,105550.0,0.14402461]
[1749004631416,0.71123785,105570.0,105550.0,0.14602461]
[1749004631624,0.35473785,105560.0,105550.0,0.14602461]
[1749004632046,0.35473785,105560.0,105550.0,0.14802461]
[1749004632500,0.35473785,105560.0,105550.0,0.43690461]
[1749004632723,0.35473785,105560.0,105550.0,0.43786237]
[1749004632938,0.69473785,105560.0,105550.0,0.40390599]
[1749004633404,0.69473785,105560.0,105550.0,0.40486376]
[1749004633614,0.69473785,105560.0,105550.0,0.40390599]
[1749004633829,1.0494757,105560.0,105550.0,0.40590599]
[1749004634050,0.7094757,105560.0,105550.0,0.40590599]
[1749004634265,0.7094757,105560.0,105550.0,0.11702599]
[1749004634266,0.35473785,105560.0,105550.0,0.11702599]
[1749004634499,0.7252757,105560.0,105550.0,0.3935238]
[1749004634717,0.37053785,105560.0,105550.0,0.3935238]
[1749004634931,0.37053785,105560.0,105550.0,0.39056599]
[1749004635152,0.37053785,105560.0,105550.0,0.39352381]
[1749004635371,0.37053785,105560.0,105550.0,0.99700599]
[1749004635833,0.35473785,105560.0,105550.0,1.01556381]
[1749004636047,0.35473785,105560.0,105550.0,1.02740579]
[1749004636600,0.35473785,105560.0,105550.0,1.03036361]
[1749004636788,0.35473785,105560.0,105550.0,1.02740579]
[1749004639132,0.35473785,105560.0,105550.0,1.0303636]
[1749004639540,0.35473785,105560.0,105550.0,1.02740579]
[1749004639744,0.37093785,105560.0,105550.0,1.0146036]
[1749004639974,0.37093785,105560.0,105550.0,1.01460361]
[1749004640185,0.37093785,105560.0,105550.0,1.01164579]
[1749004640623,0.38062598,105560.0,105550.0,1.01164579]
[1749004641300,0.36442598,105560.0,105550.0,1.02976361]
[1749004641512,0.36442598,105560.0,105550.0,1.02680579]
[1749004641938,0.35473785,105560.0,105550.0,1.02680579]
[1749004642147,0.35473785,105560.0,105550.0,1.04320579]
[1749004642374,0.35473785,105560.0,105550.0,1.04616359]
[1749004642609,0.35473785,105560.0,105550.0,1.04320579]
[1749004643035,0.35473785,105560.0,105550.0,1.02840599]
[1749004643249,0.35473785,105560.0,105550.0,1.03136376]
[1749004643477,0.35473785,105560.0,105550.0,1.02840599]
[1749004643689,0.35473785,105560.0,105550.0,1.03136376]
[1749004644161,0.35473785,105560.0,105550.0,1.02840599]
[1749004644559,0.35473785,105560.0,105550.0,1.03136376]
[1749004645051,0.35473785,105560.0,105550.0,1.02840599]
[1749004646157,0.35473785,105560.0,105550.0,1.04320544]
[1749004646370,0.35473785,105560.0,105550.0,1.04616303]
[1749004646581,0.35473785,105560.0,105550.0,1.04320544]
[1749004650533,0.35473785,105570.0,105560.0,0.015]
[1749004650749,0.7094757,105570.0,105560.0,0.1108543]
[1749004652487,0.7253757,105570.0,105560.0,0.1108543]
[1749004652959,0.7094757,105570.0,105560.0,0.4879743]
[1749004653614,0.7250757,105570.0,105560.0,0.1843743]
[1749004653855,0.7250757,105570.0,105560.0,0.4729743]
[1749004654517,0.7406757,105570.0,105560.0,0.4729743]
[1749004655173,0.7406757,105570.0,105560.0,0.0958543]
[1749004655377,0.7406757,105570.0,105560.0,0.4729743]
[1749004657177,0.7250757,105570.0,105560.0,0.4729743]
[1749004657852,0.7411757,105570.0,105560.0,0.4729743]
[1749004659932,0.7411757,105570.0,105560.0,0.0958543]
[1749004660150,0.7411757,105570.0,105560.0,0.4727343]
[1749004660380,0.7411757,105570.0,105560.0,0.1841343]
[1749004660601,0.7411757,105570.0,105560.0,0.4727343]
[1749004660828,1.11376605,105570.0,105560.0,0.37688]
[1749004661261,1.09892227,105570.0,105560.0,0.37688]
[1749004661506,1.09892233,105570.0,105560.0,0.37983776]
[1749004661781,1.0811757,105570.0,105560.0,0.37688]
[1749004662437,1.0811757,105570.0,105560.0,0.37983777]
[1749004662649,1.0811757,105570.0,105560.0,0.37688]
[1749004662865,1.0821757,105570.0,105560.0,0.37688]
[1749004663139,1.09992233,105570.0,105560.0,0.37688]
[1749004663338,1.0831757,105570.0,105560.0,0.37688]
[1749004663896,1.10092233,105570.0,105560.0,0.37688]
[1749004664305,1.0831757,105570.0,105560.0,0.37688]
[1749004665143,0.0152,105560.0,105550.0,0.51979169]
[1749004665349,0.36993785,105560.0,105550.0,0.70392599]
[1749004665559,0.36993785,105560.0,105550.0,0.99252599]
[1749004665765,0.36993785,105560.0,105550.0,0.61564599]
[1749004665979,0.38563785,105560.0,105550.0,0.99252599]
[1749004667753,0.38563785,105560.0,105550.0,0.61564599]
[1749004667989,0.38563785,105560.0,105550.0,0.99252599]
[1749004668460,0.38563785,105560.0,105550.0,0.60807169]
[1749004668461,1.0803757,105560.0,105550.0,0.60807169]
[1749004668672,1.0803757,105560.0,105550.0,0.89667169]
[1749004670259,1.09812412,105560.0,105550.0,0.89667169]
[1749004670479,1.0813757,105560.0,105550.0,0.89667169]
[1749004670919,1.09912418,105560.0,105550.0,0.89667169]
[1749004671136,1.0813757,105560.0,105550.0,0.89667169]
[1749004671324,1.0813757,105560.0,105550.0,0.60807169]
[1749004671460,1.0823757,105560.0,105550.0,0.89667169]
[1749004671662,1.0823757,105560.0,105550.0,0.89671169]
[1749004672923,1.10012473,105560.0,105550.0,0.60807169]
[1749004673102,1.0823757,105560.0,105550.0,0.89671169]
[1749004673718,1.10012501,105560.0,105550.0,0.89671169]
[1749004673927,1.0823757,105560.0,105550.0,0.89671169]
[1749004674439,1.10012508,105560.0,105550.0,0.89671169]
[1749004674764,1.0813757,105560.0,105550.0,0.51979169]
[1749004674934,1.0813757,105560.0,105550.0,0.89671169]
[1749004675496,1.0843757,105560.0,105550.0,0.60807169]
[1749004675698,1.10212541,105560.0,105550.0,0.89671169]
[1749004675918,1.0833757,105560.0,105550.0,0.89671169]
[1749004676135,1.12911114,105560.0,105540.0,0.02]
[1749004676343,1.0818757,105550.0,105540.0,0.02]
[1749004676552,1.09962619,105550.0,105540.0,0.30864]
[1749004676775,0.0324,105540.0,105530.0,0.01480171]
[1749004676991,1.0818757,105540.0,105530.0,0.01480171]
[1749004677253,1.0818757,105540.0,105530.0,0.30344171]
[1749004678994,1.09962749,105540.0,105530.0,0.30344171]
[1749004679219,1.09962749,105540.0,105530.0,0.01580171]
[1749004679220,1.0818757,105540.0,105530.0,0.01580171]
[1749004679443,1.0818757,105540.0,105530.0,0.30344171]
[1749004680764,1.0828757,105540.0,105530.0,0.30344171]
[1749004680988,1.10062749,105540.0,105530.0,0.30344171]
[1749004681218,1.0838757,105540.0,105530.0,0.30344171]
[1749004681432,1.11210808,105540.0,105530.0,0.30344171]
[1749004681644,1.11210808,105540.0,105530.0,0.01480171]
[1749004681866,1.11210808,105540.0,105530.0,0.30348171]
[1749004682292,1.12986017,105540.0,105530.0,0.30348171]
[1749004682521,1.12986023,105540.0,105530.0,0.30348171]
[1749004682733,1.11210808,105540.0,105530.0,0.30348171]
[1749004682974,1.11210808,105540.0,105530.0,0.28868]
[1749004683458,1.12986032,105540.0,105530.0,0.28868]
[1749004683874,1.11210808,105540.0,105530.0,0.28868]
[1749004685426,1.11210808,105540.0,105530.0,0.89508]
[1749004685645,1.12986032,105540.0,105530.0,0.89508]
[1749004685896,1.11210808,105540.0,105530.0,0.89508]
[1749004687215,1.12986032,105540.0,105530.0,0.89508]
[1749004687655,1.11210808,105540.0,105530.0,0.89508]
[1749004688329,1.12986032,105540.0,105530.0,0.89508]
[1749004688557,1.11210808,105540.0,105530.0,0.89508]
[1749004689306,1.12986032,105540.0,105530.0,0.89508]
[1749004689726,1.11210808,105540.0,105530.0,0.89508]
[1749004689946,1.11210808,105540.0,105530.0,0.6064]
[1749004690166,1.11210808,105540.0,105530.0,0.89508]
[1749004690379,1.11396032,105540.0,105530.0,0.89508]
[1749004690596,1.09620808,105540.0,105530.0,0.89508]
[1749004691041,1.11396032,105540.0,105530.0,0.89508]
[1749004691253,1.09620808,105540.0,105530.0,0.89508]
[1749004691729,1.11396032,105540.0,105530.0,0.89508]
[1749004691970,1.11396032,105540.0,105530.0,0.08832]
[1749004691971,0.72497023,105540.0,105530.0,0.08832]
[1749004692201,0.342,105540.0,105530.0,0.10462]
[1749004692408,0.002,105540.0,105530.0,0.2004743]
[1749004693041,0.002,105540.0,105530.0,0.4891543]
[1749004693253,0.35673785,105540.0,105530.0,0.4891543]
[1749004694105,0.7114757,105540.0,105530.0,0.4891543]
[1749004694950,0.7114757,105540.0,105530.0,0.5054543]
[1749004695432,0.7114757,105540.0,105530.0,1.0235743]